[Event "Schack-SM 2022: Mastarklassen"]
[Site "Fyrishov, Idrottsgatan 2, Uppsala, Sweden"]
[Date "2022.07.06"]
[Round "5.2"]
[White "Crevatin, Leo"]
[Black "Eriksson, Dan"]
[Result "1/2-1/2"]
[TimeControl "90 minutes for 40 moves + 30 minutes for the rest of the game + 30 seconds per move from move one."]
[WhiteTitle "CM"]
[WhiteFideId "1726307"]
[BlackFideId "1710095"]
[WhiteElo "2259"]
[BlackElo "2246"]

1. d4 {[%clk 01:30:58]} {[%emt 00:00:01]} d5 {[%clk 01:30:54]} {[%emt
00:00:06]} 2. c4 {[%clk 01:31:23]} {[%emt 00:00:04]} dxc4 {[%clk 01:31:04]}
{[%emt 00:00:21]} 3. Nf3 {[%clk 01:31:43]} {[%emt 00:00:09]} Nf6 {[%clk
01:31:00]} {[%emt 00:00:34]} 4. e3 {[%clk 01:32:06]} {[%emt 00:00:08]} e6
{[%clk 01:30:45]} {[%emt 00:00:44]} 5. Bxc4 {[%clk 01:32:23]} {[%emt 00:00:12]}
a6 {[%clk 01:30:52]} {[%emt 00:00:23]} 6. O-O {[%clk 01:30:31]} {[%emt
00:02:22]} c5 {[%clk 01:30:34]} {[%emt 00:00:48]} 7. Qe2 {[%clk 01:22:29]}
{[%emt 00:08:32]} b5 {[%clk 01:26:47]} {[%emt 00:04:17]} 8. Bd3 {[%clk
01:22:21]} {[%emt 00:00:39]} Bb7 {[%clk 01:22:46]} {[%emt 00:04:31]} 9. dxc5
{[%clk 01:21:59]} {[%emt 00:00:52]} b4 {[%clk 01:03:01]} {[%emt 00:20:15]} 10.
a3 {[%clk 01:08:16]} {[%emt 00:14:13]} Bxc5 {[%clk 01:00:55]} {[%emt 00:02:36]}
11. axb4 {[%clk 01:08:23]} {[%emt 00:00:23]} Bxb4 {[%clk 00:56:31]} {[%emt
00:04:54]} 12. Rd1 {[%clk 01:05:28]} {[%emt 00:03:25]} Qb6 {[%clk 00:52:53]}
{[%emt 00:04:08]} 13. Nbd2 {[%clk 01:00:30]} {[%emt 00:05:28]} O-O {[%clk
00:50:02]} {[%emt 00:03:21]} 14. Nc4 {[%clk 00:59:45]} {[%emt 00:01:16]} Qc5
{[%clk 00:47:46]} {[%emt 00:02:46]} 15. e4 {[%clk 00:57:59]} {[%emt 00:02:15]}
Qh5 {[%clk 00:45:53]} {[%emt 00:02:22]} 16. Bd2 {[%clk 00:46:47]} {[%emt
00:11:42]} Bxd2 {[%clk 00:43:06]} {[%emt 00:03:17]} 17. Rxd2 {[%clk 00:46:49]}
{[%emt 00:00:28]} Rd8 {[%clk 00:34:59]} {[%emt 00:08:37]} 18. Na5 {[%clk
00:39:08]} {[%emt 00:08:11]} Bc8 {[%clk 00:30:10]} {[%emt 00:05:20]} 19. e5
{[%clk 00:35:05]} {[%emt 00:04:33]} Nd5 {[%clk 00:24:42]} {[%emt 00:05:58]} 20.
Ra4 {[%clk 00:33:31]} {[%emt 00:02:03]} g5 {[%clk 00:20:59]} {[%emt 00:04:12]}
21. h4 {[%clk 00:27:47]} {[%emt 00:06:14]} Bd7 {[%clk 00:19:58]} {[%emt
00:01:32]} 22. Rd4 {[%clk 00:25:40]} {[%emt 00:02:37]} Nf4 {[%clk 00:13:16]}
{[%emt 00:07:12]} 23. Qe4 {[%clk 00:25:23]} {[%emt 00:00:47]} Nc6 {[%clk
00:12:57]} {[%emt 00:00:49]} 24. Nxc6 {[%clk 00:23:28]} {[%emt 00:02:25]} Bxc6
{[%clk 00:13:20]} {[%emt 00:00:07]} 25. Rxd8+ {[%clk 00:23:11]} {[%emt
00:00:47]} Rxd8 {[%clk 00:13:43]} {[%emt 00:00:07]} 26. Qxh7+ {[%clk 00:21:31]}
{[%emt 00:02:10]} Kf8 {[%clk 00:13:43]} {[%emt 00:00:31]} 27. Qxh5 {[%clk
00:19:54]} {[%emt 00:02:07]} Nxh5 {[%clk 00:14:06]} {[%emt 00:00:07]} 28. Bxa6
{[%clk 00:19:08]} {[%emt 00:01:16]} Ra8 {[%clk 00:12:28]} {[%emt 00:02:08]} 29.
Be2 {[%clk 00:18:42]} {[%emt 00:00:56]} Nf4 {[%clk 00:09:25]} {[%emt 00:03:33]}
30. hxg5 {[%clk 00:18:04]} {[%emt 00:01:08]} Kg7 {[%clk 00:05:04]} {[%emt
00:04:51]} 31. Nh4 {[%clk 00:15:26]} {[%emt 00:03:08]} Rh8 {[%clk 00:04:31]}
{[%emt 00:01:03]} 32. Bf3 {[%clk 00:13:35]} {[%emt 00:02:21]} Bb5 {[%clk
00:04:49]} {[%emt 00:00:12]} 33. g3 {[%clk 00:13:12]} {[%emt 00:00:52]} Nh3+
{[%clk 00:05:02]} {[%emt 00:00:18]} 34. Kg2 {[%clk 00:12:54]} {[%emt 00:00:47]}
Nxg5 {[%clk 00:05:03]} {[%emt 00:00:30]} 35. Rd4 {[%clk 00:11:29]} {[%emt
00:01:54]} Rc8 {[%clk 00:04:40]} {[%emt 00:00:53]} 36. Bd1 {[%clk 00:09:42]}
{[%emt 00:02:17]} Rc1 {[%clk 00:04:03]} {[%emt 00:01:07]} 37. f3 {[%clk
00:07:57]} {[%emt 00:02:16]} Rb1 {[%clk 00:03:45]} {[%emt 00:00:48]} 38. Rd2
{[%clk 00:08:18]} {[%emt 00:00:08]} f6 {[%clk 00:01:23]} {[%emt 00:02:53]} 39.
exf6+ {[%clk 00:06:58]} {[%emt 00:01:51]} Kxf6 {[%clk 00:01:51]} {[%emt
00:00:02]} 40. Be2 {[%clk 00:05:14]} {[%emt 00:02:13]} Bc6 {[%clk 00:01:12]}
{[%emt 00:01:09]} 41. Bd3 {[%clk 00:03:26]} {[%emt 00:02:18]} Re1 {[%clk
00:30:14]} {[%emt 00:01:28]} 42. Kf2 {[%clk 00:30:33]} {[%emt 00:03:24]} Rh1
{[%clk 00:29:47]} {[%emt 00:00:56]} 43. Bf1 {[%clk 00:17:50]} {[%emt 00:13:14]}
Nxf3 {[%clk 00:14:21]} {[%emt 00:15:56]} 44. Nxf3 {[%clk 00:18:03]} {[%emt
00:00:16]} Bxf3 {[%clk 00:14:46]} {[%emt 00:00:06]} 45. Kxf3 {[%clk 00:18:13]}
{[%emt 00:00:20]} Rxf1+ {[%clk 00:15:10]} {[%emt 00:00:05]} 46. Rf2 {[%clk
00:18:20]} {[%emt 00:00:23]} Re1 {[%clk 00:15:34]} {[%emt 00:00:06]} 47. g4
{[%clk 00:16:53]} {[%emt 00:01:57]} Kg5 {[%clk 00:11:29]} {[%emt 00:04:36]} 48.
Rg2 {[%clk 00:10:10]} {[%emt 00:07:11]} e5 {[%clk 00:10:05]} {[%emt 00:01:56]}
49. Re2 {[%clk 00:05:39]} {[%emt 00:05:00]} Rxe2 {[%clk 00:09:45]} {[%emt
00:00:50]} 50. Kxe2 {[%clk 00:06:08]} {[%emt 00:00:01]} Kxg4 {[%clk 00:10:07]}
{[%emt 00:00:07]} 51. b4 {[%clk 00:06:36]} {[%emt 00:00:03]} Kf5 {[%clk
00:10:29]} {[%emt 00:00:08]} 52. b5 {[%clk 00:07:03]} {[%emt 00:00:02]} Ke6
{[%clk 00:10:51]} {[%emt 00:00:08]} 53. Ke3 {[%clk 00:07:28]} {[%emt 00:00:06]}
Kd5 {[%clk 00:11:12]} {[%emt 00:00:08]} 54. b6 {[%clk 00:07:56]} {[%emt
00:00:03]} Kc6 {[%clk 00:11:34]} {[%emt 00:00:08]} 55. Ke4 {[%clk 00:08:24]}
{[%emt 00:00:02]} Kxb6 {[%clk 00:11:58]} {[%emt 00:00:06]} 56. Kxe5 {[%clk
00:08:51]} {[%emt 00:00:03]} 1/2-1/2

[Event "Schack-SM 2022: Mastarklassen"]
[Site "Fyrishov, Idrottsgatan 2, Uppsala, Sweden"]
[Date "2022.07.06"]
[Round "5.3"]
[White "Eriksson, Jorgen"]
[Black "Jogstad, Daniel"]
[Result "1/2-1/2"]
[TimeControl "90 minutes for 40 moves + 30 minutes for the rest of the game + 30 seconds per move from move one."]
[BlackTitle "CM"]
[WhiteFideId "1701967"]
[BlackFideId "1718959"]
[WhiteElo "2200"]
[BlackElo "2057"]

1. d4 {[%clk 01:30:34]} {[%emt 00:00:25]} Nf6 {[%clk 01:30:54]} {[%emt
00:00:06]} 2. Bg5 {[%clk 01:30:53]} {[%emt 00:00:10]} Ne4 {[%clk 01:31:19]}
{[%emt 00:00:05]} 3. Bf4 {[%clk 01:31:17]} {[%emt 00:00:06]} c5 {[%clk
01:31:45]} {[%emt 00:00:06]} 4. f3 {[%clk 01:31:14]} {[%emt 00:00:32]} Qa5+
{[%clk 01:32:04]} {[%emt 00:00:11]} 5. c3 {[%clk 01:31:20]} {[%emt 00:00:24]}
Nf6 {[%clk 01:32:21]} {[%emt 00:00:13]} 6. Nd2 {[%clk 01:31:13]} {[%emt
00:00:37]} cxd4 {[%clk 01:32:44]} {[%emt 00:00:07]} 7. Nb3 {[%clk 01:31:26]}
{[%emt 00:00:17]} Qb6 {[%clk 01:33:09]} {[%emt 00:00:06]} 8. Qxd4 {[%clk
01:30:31]} {[%emt 00:01:25]} Nc6 {[%clk 01:33:34]} {[%emt 00:00:05]} 9. Qxb6
{[%clk 01:30:50]} {[%emt 00:00:11]} axb6 {[%clk 01:34:00]} {[%emt 00:00:04]} 10.
Nd4 {[%clk 01:28:37]} {[%emt 00:02:43]} e5 {[%clk 01:34:21]} {[%emt 00:00:09]}
11. Nxc6 {[%clk 01:28:56]} {[%emt 00:00:11]} dxc6 {[%clk 01:34:47]} {[%emt
00:00:04]} 12. Bxe5 {[%clk 01:29:01]} {[%emt 00:00:25]} Nd7 {[%clk 01:32:06]}
{[%emt 00:03:11]} 13. Bd4 {[%clk 01:19:17]} {[%emt 00:10:14]} Nc5 {[%clk
01:32:30]} {[%emt 00:00:06]} 14. Bxc5 {[%clk 01:17:09]} {[%emt 00:02:38]} bxc5
{[%clk 01:31:47]} {[%emt 00:01:14]} 15. e4 {[%clk 01:16:24]} {[%emt 00:01:14]}
Be6 {[%clk 01:32:09]} {[%emt 00:00:08]} 16. a3 {[%clk 01:05:35]} {[%emt
00:11:20]} b5 {[%clk 01:32:30]} {[%emt 00:00:08]} 17. Nh3 {[%clk 01:03:18]}
{[%emt 00:02:46]} Bd6 {[%clk 01:25:56]} {[%emt 00:07:05]} 18. Be2 {[%clk
00:53:11]} {[%emt 00:10:37]} Ke7 {[%clk 01:15:07]} {[%emt 00:11:19]} 19. O-O
{[%clk 00:51:27]} {[%emt 00:02:14]} b4 {[%clk 01:14:08]} {[%emt 00:01:29]} 20.
f4 {[%clk 00:31:27]} {[%emt 00:20:30]} f6 {[%clk 01:14:01]} {[%emt 00:00:37]}
21. axb4 {[%clk 00:30:59]} {[%emt 00:00:58]} cxb4 {[%clk 01:14:07]} {[%emt
00:00:25]} 22. cxb4 {[%clk 00:31:20]} {[%emt 00:00:08]} Bxh3 {[%clk 01:02:14]}
{[%emt 00:12:23]} 23. gxh3 {[%clk 00:25:50]} {[%emt 00:05:59]} Bxf4 {[%clk
01:02:31]} {[%emt 00:00:14]} 24. Rxa8 {[%clk 00:25:58]} {[%emt 00:00:22]} Be3+
{[%clk 01:02:51]} {[%emt 00:00:10]} 25. Kg2 {[%clk 00:26:22]} {[%emt 00:00:05]}
Rxa8 {[%clk 01:03:16]} {[%emt 00:00:05]} 26. Rf3 {[%clk 00:26:38]} {[%emt
00:00:13]} Bd4 {[%clk 01:03:21]} {[%emt 00:00:26]} 27. Ra3 {[%clk 00:26:36]}
{[%emt 00:00:32]} Rb8 {[%clk 00:56:21]} {[%emt 00:07:30]} 28. Rb3 {[%clk
00:26:17]} {[%emt 00:00:49]} Kd6 {[%clk 00:50:30]} {[%emt 00:06:21]} 29. Bc4
{[%clk 00:22:06]} {[%emt 00:04:41]} Be5 {[%clk 00:24:01]} {[%emt 00:26:59]} 30.
Rd3+ {[%clk 00:18:18]} {[%emt 00:04:17]} Kc7 {[%clk 00:23:47]} {[%emt
00:00:45]} 31. Rb3 {[%clk 00:18:00]} {[%emt 00:00:48]} Kb6 {[%clk 00:22:31]}
{[%emt 00:01:46]} 32. Kf3 {[%clk 00:04:42]} {[%emt 00:13:48]} Bxh2 {[%clk
00:20:30]} {[%emt 00:02:31]} 33. Rd3 {[%clk 00:04:39]} {[%emt 00:00:32]} Kc7
{[%clk 00:20:27]} {[%emt 00:00:34]} 34. b5 {[%clk 00:03:07]} {[%emt 00:02:01]}
cxb5 {[%clk 00:20:37]} {[%emt 00:00:20]} 35. Be6 {[%clk 00:03:28]} {[%emt
00:00:09]} Bd6 {[%clk 00:20:44]} {[%emt 00:00:22]} 36. Rc3+ {[%clk 00:03:32]}
{[%emt 00:00:26]} Kb6 {[%clk 00:12:44]} {[%emt 00:08:30]} 37. Rd3 {[%clk
00:03:12]} {[%emt 00:00:51]} Rd8 {[%clk 00:11:32]} {[%emt 00:01:42]} 38. b3
{[%clk 00:02:45]} {[%emt 00:00:57]} Kc5 {[%clk 00:08:07]} {[%emt 00:03:53]} 39.
Rc3+ {[%clk 00:02:20]} {[%emt 00:00:58]} Kb4 {[%clk 00:06:57]} {[%emt
00:01:38]} 40. Rd3 {[%clk 00:02:36]} {[%emt 00:00:15]} Ka5 {[%clk 00:02:15]}
{[%emt 00:05:13]} 41. Rd1 {[%clk 00:00:50]} {[%emt 00:02:16]} Kb6 {[%clk
00:02:05]} {[%emt 00:00:38]} 42. Rd3 {[%clk 00:19:45]} {[%emt 00:11:36]} b4
{[%clk 00:31:58]} {[%emt 00:00:37]} 43. Rd2 {[%clk 00:16:43]} {[%emt 00:03:32]}
Kc6 {[%clk 00:32:02]} {[%emt 00:00:25]} 44. Ra2 {[%clk 00:14:27]} {[%emt
00:02:48]} Be5 {[%clk 00:29:24]} {[%emt 00:03:08]} 45. Bd5+ {[%clk 00:13:59]}
{[%emt 00:00:58]} Kc5 {[%clk 00:18:16]} {[%emt 00:11:39]} 46. Ra8 {[%clk
00:12:58]} {[%emt 00:01:30]} Rd7 {[%clk 00:17:52]} {[%emt 00:00:53]} 47. Rc8+
{[%clk 00:12:40]} {[%emt 00:00:48]} Bc7 {[%clk 00:17:47]} {[%emt 00:00:35]} 48.
Rf8 {[%clk 00:12:08]} {[%emt 00:01:02]} Kd4 {[%clk 00:07:32]} {[%emt 00:10:44]}
49. Rf7 {[%clk 00:12:15]} {[%emt 00:00:24]} Rxf7 {[%clk 00:07:56]} {[%emt
00:00:06]} 50. Bxf7 {[%clk 00:12:38]} {[%emt 00:00:07]} g5 {[%clk 00:08:22]}
{[%emt 00:00:03]} 51. Bg8 {[%clk 00:11:36]} {[%emt 00:01:33]} h6 {[%clk
00:08:40]} {[%emt 00:00:13]} 52. Bf7 {[%clk 00:11:52]} {[%emt 00:00:14]} Be5
{[%clk 00:08:16]} {[%emt 00:00:54]} 53. Bg8 {[%clk 00:12:12]} {[%emt 00:00:10]}
h5 {[%clk 00:08:32]} {[%emt 00:00:14]} 54. Bf7 {[%clk 00:12:19]} {[%emt
00:00:23]} g4+ {[%clk 00:07:56]} {[%emt 00:01:05]} 55. hxg4 {[%clk 00:12:41]}
{[%emt 00:00:08]} h4 {[%clk 00:08:13]} {[%emt 00:00:13]} 56. Kg2 {[%clk
00:12:19]} {[%emt 00:00:51]} Kxe4 {[%clk 00:08:22]} {[%emt 00:00:22]} 57. Kh3
{[%clk 00:12:42]} {[%emt 00:00:08]} Bg3 {[%clk 00:08:43]} {[%emt 00:00:09]} 58.
Bg8 {[%clk 00:12:56]} {[%emt 00:00:16]} Kf4 {[%clk 00:08:02]} {[%emt 00:01:10]}
1/2-1/2

[Event "Schack-SM 2022: Mastarklassen"]
[Site "Fyrishov, Idrottsgatan 2, Uppsala, Sweden"]
[Date "2022.07.06"]
[Round "5.4"]
[White "Tiger-Norqvist, Axel"]
[Black "Malmstig, Erik"]
[Result "0-1"]
[TimeControl "90 minutes for 40 moves + 30 minutes for the rest of the game + 30 seconds per move from move one."]
[BlackTitle "FM"]
[WhiteFideId "1716816"]
[BlackFideId "1702866"]
[WhiteElo "2239"]
[BlackElo "2204"]

1. e4 {[%clk 01:30:57]} {[%emt 00:00:02]} c5 {[%clk 01:30:54]} {[%emt
00:00:06]} 2. Nf3 {[%clk 01:31:22]} {[%emt 00:00:06]} e6 {[%clk 01:31:15]}
{[%emt 00:00:08]} 3. d4 {[%clk 01:31:44]} {[%emt 00:00:09]} cxd4 {[%clk
01:31:36]} {[%emt 00:00:09]} 4. Nxd4 {[%clk 01:31:59]} {[%emt 00:00:15]} a6
{[%clk 01:31:27]} {[%emt 00:00:39]} 5. c4 {[%clk 01:31:54]} {[%emt 00:00:35]}
Nf6 {[%clk 01:31:13]} {[%emt 00:00:43]} 6. Nc3 {[%clk 01:31:49]} {[%emt
00:00:35]} Qc7 {[%clk 01:31:02]} {[%emt 00:00:41]} 7. a3 {[%clk 01:31:49]}
{[%emt 00:00:31]} Nc6 {[%clk 01:29:17]} {[%emt 00:02:14]} 8. Be3 {[%clk
01:24:58]} {[%emt 00:07:21]} d6 {[%clk 01:28:48]} {[%emt 00:00:58]} 9. Be2
{[%clk 01:23:18]} {[%emt 00:02:11]} Be7 {[%clk 01:25:32]} {[%emt 00:03:46]} 10.
O-O {[%clk 01:19:05]} {[%emt 00:04:44]} O-O {[%clk 01:23:07]} {[%emt 00:02:54]}
11. Rc1 {[%clk 01:16:41]} {[%emt 00:02:54]} Ne5 {[%clk 01:19:15]} {[%emt
00:04:22]} 12. f3 {[%clk 01:02:17]} {[%emt 00:14:54]} b6 {[%clk 01:10:52]}
{[%emt 00:08:53]} 13. b4 {[%clk 00:59:00]} {[%emt 00:03:45]} Bb7 {[%clk
01:09:43]} {[%emt 00:01:40]} 14. Na4 {[%clk 00:47:28]} {[%emt 00:12:03]} Ned7
{[%clk 01:06:33]} {[%emt 00:03:39]} 15. Qd2 {[%clk 00:42:55]} {[%emt 00:05:04]}
Rac8 {[%clk 00:57:30]} {[%emt 00:09:33]} 16. Kh1 {[%clk 00:31:40]} {[%emt
00:11:46]} Qb8 {[%clk 00:55:28]} {[%emt 00:02:31]} 17. Nb3 {[%clk 00:28:49]}
{[%emt 00:03:22]} Bc6 {[%clk 00:38:31]} {[%emt 00:17:28]} 18. Nc3 {[%clk
00:27:27]} {[%emt 00:01:51]} Bb7 {[%clk 00:31:02]} {[%emt 00:07:58]} 19. Bg1
{[%clk 00:25:13]} {[%emt 00:02:45]} Rfe8 {[%clk 00:29:03]} {[%emt 00:02:30]} 20.
Qe3 {[%clk 00:24:22]} {[%emt 00:01:20]} h6 {[%clk 00:24:56]} {[%emt 00:04:36]}
21. Qd4 {[%clk 00:14:50]} {[%emt 00:10:03]} Bd8 {[%clk 00:19:31]} {[%emt
00:05:55]} 22. Rfd1 {[%clk 00:13:18]} {[%emt 00:02:02]} Bc7 {[%clk 00:19:26]}
{[%emt 00:00:36]} 23. Qf2 {[%clk 00:12:31]} {[%emt 00:01:17]} Qa8 {[%clk
00:16:47]} {[%emt 00:03:08]} 24. Qf1 {[%clk 00:11:11]} {[%emt 00:01:50]} Rcd8
{[%clk 00:13:52]} {[%emt 00:03:25]} 25. Na4 {[%clk 00:09:30]} {[%emt 00:02:11]}
Bc6 {[%clk 00:10:55]} {[%emt 00:03:27]} 26. Nb2 {[%clk 00:07:49]} {[%emt
00:02:11]} Bb8 {[%clk 00:08:45]} {[%emt 00:02:40]} 27. c5 {[%clk 00:06:06]}
{[%emt 00:02:13]} bxc5 {[%clk 00:06:34]} {[%emt 00:02:41]} 28. bxc5 {[%clk
00:06:15]} {[%emt 00:00:21]} d5 {[%clk 00:05:48]} {[%emt 00:01:15]} 29. Nd4
{[%clk 00:05:40]} {[%emt 00:01:05]} Bf4 {[%clk 00:04:25]} {[%emt 00:01:53]} 30.
Rc2 {[%clk 00:03:30]} {[%emt 00:02:40]} Nb8 {[%clk 00:04:12]} {[%emt 00:00:44]}
31. Nxc6 {[%clk 00:03:24]} {[%emt 00:00:36]} Qxc6 {[%clk 00:04:18]} {[%emt
00:00:24]} 32. Nd3 {[%clk 00:02:28]} {[%emt 00:01:25]} Bc7 {[%clk 00:04:23]}
{[%emt 00:00:24]} 33. Nb4 {[%clk 00:02:46]} {[%emt 00:00:13]} Qa4 {[%clk
00:04:34]} {[%emt 00:00:18]} 34. exd5 {[%clk 00:02:33]} {[%emt 00:00:44]} Nxd5
{[%clk 00:04:31]} {[%emt 00:00:33]} 35. Nxd5 {[%clk 00:02:21]} {[%emt
00:00:41]} Rxd5 {[%clk 00:03:50]} {[%emt 00:01:11]} 36. Rdc1 {[%clk 00:01:36]}
{[%emt 00:01:15]} Qxa3 {[%clk 00:02:46]} {[%emt 00:01:34]} 37. Bc4 {[%clk
00:01:53]} {[%emt 00:00:13]} Rh5 {[%clk 00:02:02]} {[%emt 00:01:14]} 38. g4
{[%clk 00:01:23]} {[%emt 00:01:00]} Rg5 {[%clk 00:01:06]} {[%emt 00:01:26]} 39.
Bd4 {[%clk 00:00:49]} {[%emt 00:01:04]} Nc6 {[%clk 00:00:41]} {[%emt 00:00:55]}
40. Ra2 {[%clk 00:01:03]} {[%emt 00:00:16]} Qb4 {[%clk 00:00:50]} {[%emt
00:00:21]} 41. Rb1 {[%clk 00:30:08]} {[%emt 00:01:25]} Qxb1 {[%clk 00:30:31]}
{[%emt 00:00:49]} 42. Qxb1 {[%clk 00:27:37]} {[%emt 00:03:01]} Nxd4 {[%clk
00:30:53]} {[%emt 00:00:07]} 43. Qe4 {[%clk 00:21:07]} {[%emt 00:07:00]} Rd8
{[%clk 00:30:15]} {[%emt 00:01:08]} 44. Bxa6 {[%clk 00:13:11]} {[%emt
00:08:27]} Re5 {[%clk 00:27:52]} {[%emt 00:02:52]} 45. Qb7 {[%clk 00:12:36]}
{[%emt 00:01:05]} Rxc5 {[%clk 00:28:00]} {[%emt 00:00:22]} 46. Bd3 {[%clk
00:11:35]} {[%emt 00:01:31]} g6 {[%clk 00:21:35]} {[%emt 00:06:54]} 47. Ra8
{[%clk 00:10:06]} {[%emt 00:01:59]} Rxa8 {[%clk 00:20:18]} {[%emt 00:01:47]} 48.
Qxa8+ {[%clk 00:10:31]} {[%emt 00:00:05]} Kg7 {[%clk 00:20:10]} {[%emt
00:00:38]} 49. Qa7 {[%clk 00:10:13]} {[%emt 00:00:49]} Rc1+ {[%clk 00:17:53]}
{[%emt 00:02:46]} 50. Kg2 {[%clk 00:10:13]} {[%emt 00:00:29]} Be5 {[%clk
00:17:37]} {[%emt 00:00:46]} 51. f4 {[%clk 00:07:22]} {[%emt 00:03:22]} Bf6
{[%clk 00:17:58]} {[%emt 00:00:09]} 52. Qa5 {[%clk 00:03:12]} {[%emt 00:04:39]}
Nc6 {[%clk 00:12:56]} {[%emt 00:05:32]} 53. Qd2 {[%clk 00:02:44]} {[%emt
00:00:58]} Rc5 {[%clk 00:12:14]} {[%emt 00:01:12]} 54. Be4 {[%clk 00:02:25]}
{[%emt 00:00:50]} Nd4 {[%clk 00:12:00]} {[%emt 00:00:44]} 55. h4 {[%clk
00:02:17]} {[%emt 00:00:37]} Kg8 {[%clk 00:11:36]} {[%emt 00:00:54]} 56. g5
{[%clk 00:02:18]} {[%emt 00:00:30]} hxg5 {[%clk 00:11:45]} {[%emt 00:00:21]} 57.
hxg5 {[%clk 00:02:43]} {[%emt 00:00:05]} Bg7 {[%clk 00:12:05]} {[%emt
00:00:09]} 58. Qb4 {[%clk 00:02:22]} {[%emt 00:00:52]} Rb5 {[%clk 00:12:05]}
{[%emt 00:00:30]} 59. Qc3 {[%clk 00:01:42]} {[%emt 00:01:10]} Nf5 {[%clk
00:11:57]} {[%emt 00:00:38]} 60. Qc8+ {[%clk 00:02:06]} {[%emt 00:00:07]} Bf8
{[%clk 00:12:15]} {[%emt 00:00:11]} 61. Bxf5 {[%clk 00:02:10]} {[%emt
00:00:27]} Rxf5 {[%clk 00:12:00]} {[%emt 00:00:45]} 62. Kg3 {[%clk 00:02:37]}
{[%emt 00:00:03]} Kg7 {[%clk 00:10:50]} {[%emt 00:01:40]} 63. Qd8 {[%clk
00:01:15]} {[%emt 00:01:52]} Bc5 {[%clk 00:10:44]} {[%emt 00:00:35]} 64. Qc7
{[%clk 00:00:58]} {[%emt 00:00:48]} Rd5 {[%clk 00:10:34]} {[%emt 00:00:38]} 65.
Kg4 {[%clk 00:00:45]} {[%emt 00:00:44]} Bd6 {[%clk 00:10:36]} {[%emt 00:00:28]}
66. Qd8 {[%clk 00:00:53]} {[%emt 00:00:22]} Be5 {[%clk 00:10:04]} {[%emt
00:01:01]} 67. Qb6 {[%clk 00:00:45]} {[%emt 00:00:38]} Rd4 {[%clk 00:10:16]}
{[%emt 00:00:18]} 68. Qc5 {[%clk 00:01:12]} {[%emt 00:00:05]} Rxf4+ {[%clk
00:10:29]} {[%emt 00:00:16]} 69. Kh3 {[%clk 00:01:35]} {[%emt 00:00:07]} Rf5
{[%clk 00:10:32]} {[%emt 00:00:28]} 70. Qe3 {[%clk 00:02:01]} {[%emt 00:00:04]}
Bf4 {[%clk 00:10:44]} {[%emt 00:00:17]} 71. Qc3+ {[%clk 00:02:28]} {[%emt
00:00:04]} e5 {[%clk 00:11:02]} {[%emt 00:00:12]} 72. Qc6 {[%clk 00:02:33]}
{[%emt 00:00:25]} Rxg5 {[%clk 00:11:15]} {[%emt 00:00:16]} 73. Kh4 {[%clk
00:02:35]} {[%emt 00:00:28]} Rf5 {[%clk 00:10:59]} {[%emt 00:00:46]} 74. Kg4
{[%clk 00:02:48]} {[%emt 00:00:17]} Bg5 {[%clk 00:11:09]} {[%emt 00:00:20]} 75.
Qd7 {[%clk 00:02:44]} {[%emt 00:00:35]} Bf6 {[%clk 00:11:19]} {[%emt 00:00:20]}
76. Qe8 {[%clk 00:02:45]} {[%emt 00:00:28]} Rf4+ {[%clk 00:11:18]} {[%emt
00:00:32]} 77. Kg3 {[%clk 00:03:11]} {[%emt 00:00:04]} Rc4 {[%clk 00:10:58]}
{[%emt 00:00:49]} 78. Qb5 {[%clk 00:02:59]} {[%emt 00:00:42]} Rf4 {[%clk
00:10:33]} {[%emt 00:00:56]} 79. Qe8 {[%clk 00:03:20]} {[%emt 00:00:09]} g5
{[%clk 00:10:56]} {[%emt 00:00:06]} 80. Qd7 {[%clk 00:03:28]} {[%emt 00:00:23]}
e4 {[%clk 00:10:56]} {[%emt 00:00:30]} 81. Qd5 {[%clk 00:03:36]} {[%emt
00:00:22]} e3 {[%clk 00:09:45]} {[%emt 00:01:39]} 0-1